bitfinex/quotes_SOLUSD_20250722
["timestamp","ask_amount","ask_price","bid_price","bid_amount"]
[1753166829550,5.02992807,198.81,198.76,7.24735539]
[1753166829778,5.02992807,198.81,198.76,7.90735539]
[1753166830065,40.82981626,198.82,198.77,7.90735539]
[1753166830645,48.75717165,198.82,198.76,7.24735539]
[1753166830955,40.82981626,198.82,198.75,0.66]
[1753166831159,40.82981626,198.82,198.77,7.24735539]
[1753166831367,40.82981626,198.82,198.75,5.0314451]
[1753166831568,40.82981626,198.82,198.77,7.90735539]
[1753166831746,26.68,198.85,198.77,7.24735539]
[1753166831949,43.04735539,198.84,198.78,7.90735539]
[1753166832343,48.07657527,198.84,198.78,0.66]
[1753166832549,48.07657527,198.84,198.78,7.90735539]
[1753166832757,48.07657527,198.84,198.78,7.24735539]
[1753166833267,12.27657527,198.84,198.78,7.24735539]
[1753166833469,48.07657527,198.84,198.78,7.24735539]
[1753166833851,26.0,198.85,198.8,7.24735539]
[1753166834054,26.0,198.85,198.81,0.66]
[1753166834361,26.0,198.85,198.73,35.8]
[1753166834362,26.0,198.78,198.73,0.66]
[1753166834669,69.04735539,198.81,198.75,7.24735539]
[1753166834857,33.92735539,198.81,198.74,7.24735539]
[1753166835371,5.03018108,198.8,198.74,7.24735539]
[1753166835971,12.27753647,198.8,198.74,7.24735539]
[1753166836173,12.27753647,198.8,198.7,18.29688397]
[1753166836174,26.0,198.77,198.7,2.1722]
[1753166836468,26.0,198.76,198.72,7.24735539]
[1753166836643,35.8,198.79,198.74,7.24735539]
[1753166836972,26.0,198.77,198.74,7.24735539]
[1753166837271,26.0,198.77,198.73,7.24735539]
[1753166837452,26.0,198.77,198.73,7.90735539]
[1753166838171,26.0,198.77,198.73,0.66]
[1753166838473,26.0,198.77,198.73,7.90735539]
[1753166838871,74.09771208,198.8,198.74,7.90735539]
[1753166839358,31.03035669,198.8,198.74,7.90735539]
[1753166839669,38.27771208,198.8,198.74,7.90735539]
[1753166840573,7.24735539,198.79,198.74,0.66]
[1753166840881,7.24735539,198.79,198.73,7.24735539]
[1753166841375,12.2781173,198.78,198.73,7.24735539]
[1753166841570,5.03076191,198.78,198.73,7.90735539]
[1753166841773,7.24735539,198.79,198.74,7.90735539]
[1753166842781,7.24735539,198.79,198.74,0.66]
[1753166842980,31.03036071,198.8,198.74,0.66]
[1753166843175,7.24735539,198.79,198.74,0.66]
[1753166843371,31.03036071,198.8,198.69,16.78468397]
[1753166843372,5.03094028,198.77,198.73,7.24735539]
[1753166843876,7.92735539,198.76,198.7,0.66]
[1753166844050,7.24735539,198.75,198.7,7.90735539]
[1753166844253,33.92735539,198.76,198.71,7.24735539]
[1753166845171,33.92735539,198.76,198.69,7.24735539]
[1753166845172,7.92735539,198.75,198.69,7.24735539]
[1753166845377,26.0,198.73,198.69,7.24735539]
[1753166845681,26.0,198.73,198.68,7.24735539]
[1753166845862,33.92735539,198.73,198.67,35.82]
[1753166846175,33.92735539,198.73,198.67,7.24735539]
[1753166846357,7.24735539,198.72,198.66,7.24735539]
[1753166846552,7.24735539,198.72,198.64,0.66]
[1753166846755,26.0,198.69,198.66,7.24735539]
[1753166846964,26.0,198.65,198.58,0.66]
[1753166847176,26.0,198.65,198.62,7.24735539]
[1753166847351,26.0,198.65,198.63,7.24735539]
[1753166847552,26.0,198.65,198.59,0.66]
[1753166847776,26.0,198.65,198.58,0.66]
[1753166847954,26.0,198.65,198.63,7.24735539]
[1753166848156,26.0,198.65,198.6,0.66]
[1753166848372,26.0,198.65,198.62,7.24735539]
[1753166848617,0.68,198.64,198.56,0.66]
[1753166848884,38.28140846,198.65,198.6,7.24735539]
[1753166849079,26.0,198.65,198.55,25.63734534]
[1753166849293,26.0,198.65,198.61,7.24735539]
[1753166849582,26.0,198.65,198.6,7.24735539]
[1753166849583,31.03401896,198.65,198.6,7.24735539]
[1753166849790,31.71401896,198.65,198.6,7.24735539]
[1753166850081,0.68,198.64,198.59,7.24735539]
[1753166850287,26.0,198.65,198.61,7.24735539]
[1753166850494,26.0,198.65,198.62,7.24735539]
[1753166850658,26.0,198.65,198.61,0.66]
[1753166851194,31.0341326,198.65,198.57,5.03592544]
[1753166851398,38.96148799,198.65,198.6,7.24735539]
[1753166851862,38.28148799,198.65,198.6,7.24735539]
[1753166852059,26.0,198.6,198.54,16.78468397]
[1753166852478,0.68,198.59,198.55,7.24735539]
[1753166852680,33.24735539,198.6,198.54,24.03203936]
[1753166852888,26.0,198.6,198.55,7.24735539]
[1753166853198,7.92735539,198.59,198.51,0.03]
[1753166853405,7.92735539,198.59,198.52,7.24735539]
[1753166853406,7.24735539,198.58,198.52,7.24735539]
[1753166853572,7.24735539,198.58,198.53,7.24735539]
[1753166853769,7.24735539,198.58,198.53,7.90735539]
[1753166854167,12.96309768,198.59,198.53,0.66]
[1753166854395,7.24735539,198.58,198.52,7.24735539]
[1753166854567,26.0,198.55,198.51,0.03]
[1753166854769,7.24735539,198.52,198.51,0.03]
[1753166855484,25.55782083,198.52,198.43,7.24735539]
[1753166855687,7.24735539,198.48,198.42,7.24735539]
[1753166855892,26.0,198.51,198.45,7.24735539]
[1753166855893,33.24735539,198.51,198.45,7.24735539]
[1753166856290,7.24735539,198.51,198.46,0.66]
[1753166856474,7.24735539,198.56,198.5,7.24735539]
[1753166856679,12.96310924,198.58,198.52,7.24735539]
[1753166856989,35.84,198.63,198.55,7.24735539]
[1753166857170,7.24735539,198.59,198.53,7.90735539]
[1753166857375,7.24735539,198.57,198.51,7.24735539]
[1753166857595,5.03626107,198.56,198.51,7.24735539]
[1753166857800,5.03626107,198.56,198.49,11.57183501]
[1753166857801,7.24735539,198.55,198.49,7.24735539]
[1753166858180,7.24735539,198.52,198.45,0.68]
[1753166858383,7.24735539,198.51,198.45,7.92735539]
[1753166858583,7.24735539,198.52,198.45,7.92735539]
[1753166858779,7.24735539,198.52,198.46,7.24735539]
[1753166859001,35.86,198.55,198.49,7.24735539]
[1753166859299,7.24735539,198.55,198.49,7.24735539]
[1753166859475,5.03702211,198.53,198.47,0.68]
[1753166859670,5.03702211,198.53,198.48,7.24735539]
[1753166859874,12.284156,198.54,198.48,7.92735539]
[1753166860087,5.03680061,198.54,198.49,7.24735539]
[1753166860591,5.03680061,198.54,198.49,7.92735539]
[1753166861182,26.0,198.56,198.51,7.24735539]
[1753166861414,48.14285566,198.59,198.53,7.24735539]
[1753166862398,40.89550027,198.59,198.52,0.68]
[1753166862789,40.89550027,198.59,198.53,7.24735539]
[1753166862790,48.14285566,198.59,198.53,7.24735539]
[1753166862986,5.03550027,198.59,198.53,7.24735539]
[1753166863186,5.03550027,198.59,198.54,7.24735539]
[1753166863395,5.03550027,198.59,198.54,7.92735539]
[1753166863701,5.03550027,198.59,198.55,7.92735539]
[1753166863902,31.0352922,198.6,198.55,7.92735539]
[1753166864585,31.0352922,198.6,198.53,0.68]
[1753166865013,1.5785,198.69,198.59,7.24735539]
[1753166865309,5.03321924,198.68,198.6,0.68]
[1753166865476,26.0,198.65,198.6,7.92735539]
[1753166865677,26.0,198.65,198.61,7.92735539]
[1753166865878,12.28057463,198.68,198.62,7.92735539]
[1753166866282,12.28057463,198.68,198.62,0.68]
[1753166866481,12.28057463,198.68,198.62,7.92735539]
[1753166866813,5.03321924,198.68,198.64,7.24735539]
[1753166867014,6.4936,198.7,198.66,7.24735539]
[1753166867015,5.03291102,198.7,198.66,7.24735539]
[1753166867306,5.03248316,198.71,198.68,7.24735539]
[1753166868288,5.0319529,198.73,198.68,7.24735539]
[1753166868485,12.93930829,198.73,198.67,7.92735539]
[1753166868685,12.27930829,198.73,198.67,7.24735539]
[1753166868900,12.93930829,198.73,198.67,7.24735539]
[1753166869493,26.0,198.7,198.62,7.24735539]
[1753166869707,7.24735539,198.65,198.58,0.68]
[1753166869906,7.24735539,198.62,198.56,7.24735539]
[1753166870218,5.0349932,198.61,198.56,7.24735539]
[1753166870595,5.03448623,198.63,198.58,7.24735539]
[1753166870811,12.28184162,198.63,198.58,0.68]
[1753166871899,5.03448623,198.63,198.59,0.68]
[1753166872492,33.24735539,198.64,198.59,0.68]
[1753166872493,5.03427356,198.64,198.59,7.92735539]
[1753166872692,5.03402914,198.65,198.62,7.24735539]
[1753166872894,5.03377864,198.66,198.6,0.68]
[1753166873094,5.03377864,198.66,198.62,7.24735539]
[1753166873300,43.16735539,198.68,198.58,5.03572088]
[1753166873301,5.03321924,198.68,198.63,7.24735539]
[1753166873497,5.03321924,198.68,198.63,7.92735539]
[1753166873695,5.03321924,198.68,198.64,7.92735539]
[1753166874493,5.03296592,198.69,198.64,7.92735539]
[1753166875511,5.03296592,198.69,198.64,7.24735539]
[1753166875694,5.03296592,198.69,198.61,0.68]
[1753166875900,5.03296592,198.69,198.64,7.24735539]
[1753166876208,5.03296592,198.69,198.61,5.71489692]
[1753166876518,5.03296592,198.69,198.64,7.24735539]
[1753166876696,5.03296592,198.69,198.64,7.92735539]
[1753166878145,5.03296592,198.69,198.57,16.78468397]
[1753166878146,24.86273612,198.69,198.63,7.24735539]
[1753166878299,12.28082798,198.67,198.61,7.24735539]
[1753166878498,24.86450946,198.67,198.61,7.24735539]
[1753166878799,24.86450946,198.67,198.6,0.68]
[1753166878800,7.24735539,198.66,198.6,7.92735539]
[1753166879001,7.24735539,198.64,198.58,7.24735539]
[1753166879605,7.24735539,198.65,198.59,7.92735539]
[1753166879802,7.24735539,198.64,198.59,0.68]
[1753166880110,7.24735539,198.64,198.57,35.86]
[1753166880111,7.24735539,198.62,198.57,35.86]
[1753166880315,0.66,198.63,198.53,7.27735539]
[1753166880316,7.24735539,198.59,198.53,7.27735539]
[1753166881599,7.24735539,198.58,198.53,0.03]
[1753166881997,7.24735539,198.57,198.53,0.03]
[1753166882516,5.03626107,198.56,198.53,0.03]
[1753166882904,5.03626107,198.56,198.53,7.27735539]
[1753166883110,5.03626107,198.56,198.53,7.95735539]
[1753166884208,5.03626107,198.56,198.53,7.27735539]
[1753166884410,5.03575385,198.58,198.54,0.68]
[1753166885418,12.28310924,198.58,198.53,0.03]
[1753166885602,12.94310924,198.58,198.53,0.03]
[1753166885999,7.24735539,198.57,198.53,0.03]
[1753166886216,7.90735539,198.57,198.53,0.03]
[1753166886624,12.28361646,198.56,198.53,0.03]
[1753166887302,5.03626107,198.56,198.53,0.03]
[1753166888214,5.03626107,198.56,198.53,7.27735539]
[1753166888410,5.03626107,198.56,198.54,0.66]
[1753166888612,5.03575385,198.58,198.54,0.66]
[1753166888937,12.28310924,198.58,198.53,7.27735539]
[1753166889240,7.94735539,198.57,198.53,0.03]
[1753166890725,5.03626107,198.56,198.53,0.03]
[1753166892035,5.03626107,198.56,198.54,0.66]
[1753166892251,5.03626107,198.56,198.53,0.03]
[1753166893038,4.92906067,198.56,198.54,0.66]
[1753166893432,4.92906067,198.56,198.53,7.27735539]
[1753166893644,5.09606493,198.57,198.54,0.66]
[1753166893924,0.06,198.57,198.55,0.66]
[1753166894505,0.06,198.57,198.56,0.66]
[1753166895236,0.06,198.57,198.56,7.90735539]
[1753166896141,0.06,198.57,198.55,7.24735539]
[1753166896630,0.06,198.57,198.55,7.90735539]
[1753166897212,0.06,198.57,198.56,24.69203936]
[1753166897409,0.06,198.57,198.56,7.90735539]
[1753166897734,0.06,198.57,198.56,43.76735539]
[1753166898431,0.06,198.57,198.56,7.90735539]
[1753166900129,0.06,198.57,198.56,12.94361646]
[1753166902628,0.06,198.57,198.56,0.66]
[1753166902934,0.06,198.57,198.56,7.90735539]
[1753166903838,0.06,198.57,198.56,35.76730043]
[1753166904030,5.03271263,198.7,198.56,74.35795312]
[1753166904232,5.03271263,198.7,198.65,7.24735539]
[1753166904532,5.03271263,198.7,198.67,7.24735539]
[1753166904739,5.03250485,198.71,198.67,7.24735539]
[1753166905028,5.03250485,198.71,198.68,7.24735539]
[1753166905421,5.0322747,198.72,198.68,7.24735539]
[1753166905621,5.0322747,198.72,198.69,7.24735539]
[1753166905808,26.0,198.72,198.69,7.24735539]
[1753166906626,5.0319529,198.73,198.69,7.24735539]
[1753166907240,4.0319529,198.73,198.66,5.69371712]
[1753166907535,4.0319529,198.73,198.69,7.24735539]
[1753166908011,0.7,198.73,198.69,7.24735539]
[1753166909224,5.0316997,198.74,198.69,7.90735539]
[1753166909436,5.7316997,198.74,198.7,7.24735539]
[1753166909632,0.06,198.75,198.72,7.24735539]
[1753166909823,0.06,198.75,198.69,35.84]
[1753166910026,0.06,198.75,198.66,6.5719]
[1753166910348,7.94735539,198.74,198.68,7.90735539]
[1753166910640,7.24735539,198.73,198.67,43.08735539]
[1753166911022,0.06,198.75,198.67,35.84]
[1753166911023,7.24735539,198.7,198.67,35.84]
[1753166911228,5.25953844,198.7,198.67,35.84]
[1753166911537,26.0,198.71,198.66,4.55953844]
[1753166911732,4.55953844,198.72,198.61,6.5719]
[1753166911733,4.55953844,198.67,198.61,5.21953844]
[1753166912042,5.03372596,198.66,198.61,4.55953844]
[1753166912429,5.03372596,198.66,198.61,5.21953844]
[1753166912842,4.55953844,198.63,198.57,4.55953844]
[1753166913027,4.55953844,198.61,198.55,4.55953844]
[1753166913228,7.30216558,198.6,198.54,7.96216558]
[1753166914344,5.03550027,198.59,198.55,7.30216558]
[1753166914536,5.03550027,198.59,198.56,7.30216558]
[1753166914940,5.03550027,198.59,198.56,0.03]
[1753166915936,13.03766585,198.59,198.56,0.03]
[1753166916548,5.03550027,198.59,198.56,0.03]
[1753166916945,5.73550027,198.59,198.56,0.03]
[1753166918437,5.03448623,198.63,198.58,7.30216558]
[1753166918747,5.03424227,198.64,198.61,7.30216558]
[1753166918931,5.03402579,198.65,198.61,7.30216558]
[1753166919555,0.06,198.66,198.62,7.30216558]
[1753166919931,0.06,198.66,198.62,8.00216558]
[1753166920130,0.06,198.66,198.64,7.30216558]
[1753166920446,0.06,198.66,198.63,8.00216558]
[1753166921322,0.06,198.66,198.64,0.7]
[1753166921527,0.06,198.66,198.65,7.30216558]
[1753166921755,0.06,198.66,198.65,8.00216558]
[1753166922330,0.06,198.66,198.65,43.84216558]
[1753166922650,0.06,198.66,198.65,48.87614494]
[1753166923370,0.06,198.66,198.65,65.66082891]
[1753166926532,0.06,198.66,198.65,35.82]
[1753166927236,0.06,198.66,198.63,7.30216558]
[1753166927558,0.06,198.66,198.64,7.30216558]
[1753166927750,0.06,198.66,198.63,8.00216558]
[1753166927938,0.06,198.66,198.62,35.82]
[1753166928141,0.06,198.66,198.63,7.30216558]
[1753166930036,0.06,198.66,198.63,8.00216558]
[1753166931756,0.06,198.66,198.65,7.30216558]
[1753166932258,0.06,198.66,198.65,8.00216558]
[1753166933058,0.06,198.66,198.65,13.03614494]
[1753166933666,0.06,198.66,198.65,29.82082891]
[1753166936056,0.06,198.66,198.65,65.64082891]
[1753166936367,0.06,198.66,198.65,36.52]
[1753166936542,0.06,198.66,198.65,43.12216558]
[1753166937756,0.06,198.66,198.65,43.82216558]
[1753166938699,0.06,198.66,198.65,48.85614494]
[1753166939261,0.06,198.66,198.65,43.12216558]
[1753166940539,0.06,198.66,198.65,48.85614494]
[1753166940841,0.06,198.73,198.66,22.98418397]
[1753166941047,0.06,198.73,198.72,7.30216558]
[1753166941268,0.2,198.77,198.72,67.20901513]
[1753166941572,0.2,198.77,198.74,29.11854925]
[1753166941752,1.6078,198.87,198.76,7.30216558]
[1753166941939,5.71794316,198.89,198.86,7.30216558]
[1753166942141,0.69,198.89,198.87,7.30216558]
[1753166942566,22.36923019,198.91,198.87,7.30216558]
[1753166942781,0.69,198.91,198.88,7.30216558]
[1753166942955,0.69,198.9,198.87,43.12216558]
[1753166943154,0.69,198.89,198.87,43.12216558]
[1753166943375,0.69,198.89,198.87,35.82]
[1753166943674,0.69,198.89,198.87,43.12216558]
[1753166944046,5.71747708,198.91,198.88,7.30216558]
[1753166944453,0.69,198.9,198.87,35.82]
[1753166944656,0.69,198.89,198.85,43.12216558]
[1753166944858,0.69,198.89,198.86,7.30216558]
[1753166945165,6.7057,198.92,198.88,7.30216558]
[1753166945370,6.7057,198.92,198.89,7.30216558]
[1753166945550,6.7057,198.92,198.85,41.54887925]
[1753166945746,11.73291532,198.92,198.85,35.82]
[1753166945975,0.69,198.91,198.82,5.72953938]
[1753166946277,0.69,198.91,198.83,7.30216558]
[1753166946278,7.30216558,198.89,198.83,7.30216558]
[1753166946444,7.30216558,198.89,198.83,43.10216558]
[1753166946773,7.99216558,198.88,198.83,35.8]
[1753166947072,7.99216558,198.88,198.79,0.7]
[1753166947073,7.30216558,198.84,198.75,0.7]
[1753166947250,7.99216558,198.83,198.77,7.30216558]
[1753166947449,7.30216558,198.81,198.76,35.8]
[1753166947650,0.69,198.8,198.75,43.10216558]
[1753166947869,5.03043412,198.79,198.75,43.10216558]
[1753166948074,0.66,198.78,198.75,43.10216558]
[1753166948572,5.03043412,198.79,198.75,35.8]
[1753166948775,0.66,198.77,198.75,35.8]
[1753166949269,0.66,198.77,198.73,43.10216558]
[1753166949471,6.6637,198.81,198.75,7.30216558]
[1753166949772,5.02941165,198.84,198.8,7.30216558]
[1753166950088,5.02941165,198.84,198.81,7.30216558]
[1753166950663,0.66,198.83,198.8,7.30216558]
[1753166950855,5.02941165,198.84,198.81,7.30216558]
[1753166951474,5.02941165,198.84,198.79,35.8]
[1753166951475,1.6169,198.87,198.82,7.30216558]
[1753166951676,26.0,198.87,198.84,7.30216558]
[1753166951871,5.02790487,198.89,198.84,7.30216558]
[1753166952082,5.68790487,198.89,198.85,7.30216558]
[1753166952659,7.3237,198.91,198.83,35.8]
[1753166952963,5.02714659,198.92,198.89,7.30216558]
[1753166953576,0.66,198.91,198.87,7.30216558]
[1753166953880,5.0276652,198.9,198.87,7.30216558]
[1753166954569,5.68752475,198.91,198.88,7.30216558]
[1753166954770,5.22713442,198.93,198.89,7.30216558]
[1753166955074,5.88713442,198.93,198.89,7.30216558]
[1753166955264,5.88713442,198.93,198.88,7.30216558]
[1753166955472,5.88713442,198.93,198.89,7.30216558]
[1753166956378,5.88713442,198.93,198.85,41.50890488]
[1753166956563,5.88713442,198.93,198.89,7.30216558]
[1753166956763,5.88713442,198.93,198.9,7.30216558]
[1753166957786,26.0,198.9,198.85,7.30216558]
[1753166957971,0.66,198.89,198.84,7.30216558]
[1753166958168,0.66,198.88,198.84,7.30216558]
[1753166958780,5.02841051,198.87,198.84,7.30216558]
[1753166959081,5.68841051,198.87,198.83,43.08216558]
[1753166959278,0.66,198.86,198.83,35.78]
[1753166959776,5.02841051,198.87,198.83,43.08216558]
[1753166960471,5.02841051,198.87,198.83,43.78216558]
[1753166960867,26.0,198.86,198.83,43.78216558]
[1753166961387,26.0,198.86,198.84,7.30216558]
[1753166962087,26.0,198.86,198.83,43.78216558]
[1753166962386,26.66,198.86,198.82,7.30216558]
[1753166962687,26.66,198.86,198.82,43.08216558]
[1753166963186,31.02881834,198.86,198.82,43.08216558]
[1753166964371,26.0,198.86,198.83,7.30216558]
[1753166965298,26.0,198.86,198.83,0.7]
[1753166965598,26.0,198.86,198.83,8.00216558]
[1753166965776,0.66,198.85,198.82,35.78]
[1753166966097,0.66,198.84,198.82,35.78]
[1753166966290,5.02942211,198.83,198.82,35.78]
[1753166966673,5.02942211,198.83,198.79,43.08216558]
[1753166966873,5.02942211,198.83,198.8,7.30216558]
[1753166967079,5.02942211,198.83,198.8,8.00216558]
[1753166967281,5.0291574,198.85,198.79,35.78]
[1753166967484,5.0291574,198.85,198.82,7.30216558]
[1753166967699,5.0291574,198.85,198.81,8.00216558]
[1753166968726,31.02870946,198.86,198.82,8.00216558]
[1753166969472,31.02870946,198.86,198.82,0.7]
[1753166969875,31.02870946,198.86,198.82,8.00216558]
[1753166970274,31.02870946,198.86,198.82,0.7]
[1753166970572,5.02870946,198.86,198.83,0.7]
[1753166970779,5.02870946,198.86,198.82,7.30216558]
[1753166970780,5.02841051,198.87,198.82,7.30216558]
[1753166971284,5.02841051,198.87,198.82,8.00216558]
[1753166971489,5.02841051,198.87,198.83,0.7]
[1753166971663,5.02841051,198.87,198.83,8.00216558]
[1753166971868,5.02841051,198.87,198.83,0.7]
[1753166972068,5.68841051,198.87,198.82,7.30216558]
[1753166972300,26.0,198.86,198.83,8.00216558]
[1753166972508,5.02794663,198.89,198.85,7.30216558]
[1753166972800,33.30216558,198.92,198.86,8.00216558]
[1753166973009,5.02739932,198.91,198.87,7.30216558]
[1753166973296,5.02719658,198.92,198.88,8.00216558]
[1753166973497,5.02719658,198.92,198.89,7.30216558]
[1753166973683,5.2269594,198.93,198.89,7.30216558]
[1753166973872,5.22702325,198.93,198.88,35.76]
[1753166974076,5.88702325,198.93,198.89,7.30216558]
[1753166974486,0.2,198.93,198.91,7.30216558]
[1753166974673,0.2,198.93,198.91,8.00216558]
[1753166975099,0.2,198.93,198.92,8.00216558]
[1753166975406,0.2,198.93,198.92,24.78684955]
[1753166975607,0.2,198.93,198.92,8.00216558]
[1753166975778,0.2,198.93,198.91,43.06216558]
[1753166976109,5.22690392,198.93,198.89,8.00216558]
[1753166976314,5.22690392,198.93,198.89,43.76216558]
[1753166977108,0.2,198.93,198.9,7.30216558]
[1753166977284,0.2,198.93,198.92,7.30216558]
[1753166977480,0.2,198.93,198.91,8.00216558]
[1753166978181,0.2,198.93,198.92,7.30216558]
[1753166979089,0.2,198.93,198.92,7.97216558]
[1753166979388,0.2,198.93,198.92,12.99931217]
[1753166980885,0.2,198.93,198.92,0.67]
[1753166981084,0.2,198.93,198.92,43.73216558]
[1753166981303,0.2,198.93,198.92,7.97216558]
[1753166981488,0.2,198.93,198.83,8.43604221]
[1753166981694,0.2,198.93,198.89,7.30216558]
[1753166981893,0.2,198.93,198.9,7.30216558]
[1753166982192,0.2,198.93,198.91,7.30216558]
[1753166982391,5.22692164,198.93,198.89,43.73216558]
[1753166982588,5.22692164,198.93,198.9,7.30216558]
[1753166982787,0.2,198.93,198.9,7.30216558]
[1753166983385,0.2,198.93,198.91,7.97216558]
[1753166983884,0.2,198.93,198.92,7.97216558]
[1753166984606,0.2,198.93,198.92,24.75684955]
[1753166985310,0.2,198.93,198.92,29.78399614]
[1753166986014,0.2,198.93,198.92,24.75684955]
[1753166986191,0.2,198.93,198.92,29.78399614]
[1753166988718,0.2,198.93,198.92,65.52399614]
[1753166990195,0.2,198.93,198.92,58.22183056]
[1753166990395,0.2,198.93,198.92,35.74]
[1753166990594,0.2,198.93,198.92,43.04216558]
[1753166990904,0.2,198.93,198.92,60.49684955]
[1753166991510,5.9469463,198.93,198.88,0.67]
[1753166991700,0.72,198.92,198.88,35.74]
[1753166991902,12.52911188,198.93,198.91,7.30216558]
[1753166991903,0.2,198.93,198.91,7.30216558]
[1753166992108,0.2,198.93,198.92,7.30216558]
[1753166992623,0.2,198.93,198.92,7.97216558]
[1753166997215,0.2,198.93,198.92,29.78399614]
[1753166997519,0.2,198.93,198.92,7.30216558]
[1753166998099,0.2,198.93,198.92,7.97216558]
[1753166998328,0.2,198.93,198.92,24.75684955]
[1753166999417,0.2,198.93,198.92,29.78399614]
[1753167000198,0.2,198.93,198.92,7.30216558]
[1753167000393,0.2,198.93,198.92,43.04216558]
[1753167000605,0.2,198.93,198.92,35.74]
[1753167000802,0.2,198.93,198.92,43.04216558]
[1753167001128,0.2,198.93,198.92,36.41]
[1753167001332,0.2,198.93,198.92,43.71216558]
[1753167001535,0.92,198.93,198.84,0.67]
[1753167001825,0.72,198.92,198.87,7.30216558]
[1753167002205,0.72,198.92,198.86,43.04216558]
[1753167002422,0.72,198.92,198.87,7.30216558]
[1753167002623,1.7946,198.93,198.9,7.30216558]
[1753167002919,1.7946,198.93,198.92,7.30216558]
[1753167002920,0.2,198.93,198.92,7.30216558]
[1753167003216,0.2,198.93,198.91,7.30216558]
[1753167003396,0.2,198.93,198.89,35.74]
[1753167003397,0.72,198.92,198.87,7.30216558]
[1753167003602,31.2269284,198.93,198.87,7.30216558]
[1753167003603,0.72,198.91,198.88,35.74]
[1753167004316,38.52909398,198.93,198.88,35.74]
[1753167004522,0.72,198.9,198.86,7.30216558]
[1753167004817,51.09632868,198.93,198.87,35.74]
[1753167005004,0.72,198.9,198.87,35.74]
[1753167005824,5.74767509,198.9,198.87,35.74]
[1753167006518,5.02767509,198.9,198.87,35.74]
[1753167006723,5.74767509,198.9,198.87,35.74]
[1753167007434,0.72,198.89,198.87,35.74]
[1753167007721,0.72,198.88,198.85,43.04216558]
[1753167007918,5.74827134,198.88,198.85,43.04216558]
[1753167008623,0.7,198.87,198.85,35.74]
[1753167009519,0.7,198.86,198.82,35.74]
[1753167009707,5.02916918,198.84,198.82,35.74]
[1753167009908,5.72916918,198.84,198.82,35.74]
[1753167010900,5.02894018,198.85,198.82,35.74]
[1753167011103,5.02894018,198.85,198.82,43.04216558]
[1753167011943,5.02866338,198.86,198.82,35.74]
[1753167012310,13.03082896,198.86,198.82,35.74]
[1753167012625,26.0,198.82,198.77,7.33216558]
[1753167012822,0.7,198.81,198.77,35.77]
[1753167013125,0.7,198.8,198.77,0.03]
[1753167013326,7.30216558,198.79,198.77,0.03]
[1753167013636,7.30216558,198.78,198.77,0.03]
[1753167013935,15.56855982,198.78,198.77,0.03]
[1753167015710,1.5052,198.8,198.77,0.03]
[1753167016037,8.00216558,198.84,198.78,7.30216558]
[1753167016332,26.0,198.81,198.78,7.30216558]
[1753167016703,5.02916918,198.84,198.8,7.30216558]
[1753167016910,5.02916918,198.84,198.81,7.30216558]
[1753167017134,5.02841051,198.87,198.83,7.30216558]
[1753167017502,5.02841051,198.87,198.79,35.74]
[1753167017503,31.72841051,198.87,198.82,7.30216558]
[1753167017843,0.7,198.86,198.81,7.30216558]
[1753167018008,5.72889838,198.86,198.81,7.30216558]
[1753167018207,3.96131295,198.88,198.83,7.30216558]
[1753167018208,5.02815768,198.88,198.83,7.30216558]
[1753167018429,5.02815768,198.88,198.84,7.30216558]
[1753167019123,5.02815768,198.88,198.85,0.72]
[1753167019321,31.72789567,198.9,198.85,7.30216558]
[1753167019630,5.72789567,198.9,198.86,7.30216558]
[1753167019930,5.0274398,198.91,198.87,7.30216558]
[1753167021114,5.7274398,198.91,198.87,7.30216558]
[1753167021308,5.7274398,198.91,198.86,8.02216558]
[1753167021514,5.7274398,198.91,198.87,7.30216558]
[1753167021809,26.2,198.93,198.9,7.30216558]
[1753167022024,0.2,198.93,198.9,7.30216558]
[1753167022445,0.2,198.93,198.91,7.30216558]
[1753167022650,0.2,198.93,198.92,7.30216558]
[1753167022942,0.2,198.93,198.92,24.80684955]